[Event "Late-Titled-Tuesday-Blitz-March-19-2024"]
[Site "Chess.com"]
[Date "2024.03.19"]
[Round "10"]
[White "Kopytkin"]
[Black "mirochka"]
[Result "1-0"]
[WhiteElo "2412"]
[BlackElo "2260"]
[TimeControl "180+1"]
[EndTime "15:54:34 PDT"]
[Termination "Kopytkin won by checkmate"]

1. d4 {[%clk 0:03:00.4]} 1... d5 {[%clk 0:02:58.5]} 2. Nf3 {[%clk 0:02:58.6]}
2... Nf6 {[%clk 0:02:49.4]} 3. e3 {[%clk 0:02:58.7]} 3... Bf5 {[%clk 0:02:46.1]}
4. Nbd2 {[%clk 0:02:54.3]} 4... e6 {[%clk 0:02:44.7]} 5. Ne5 {[%clk 0:02:54.4]}
5... Nfd7 {[%clk 0:02:40.6]} 6. g4 {[%clk 0:02:51.4]} 6... Bg6 {[%clk
0:02:40.1]} 7. h4 {[%clk 0:02:46.9]} 7... Nxe5 {[%clk 0:02:36.3]} 8. dxe5 {[%clk
0:02:46.8]} 8... h5 {[%clk 0:02:30.4]} 9. Bd3 {[%clk 0:02:45.2]} 9... Bxd3
{[%clk 0:02:27.1]} 10. cxd3 {[%clk 0:02:45.8]} 10... d4 {[%clk 0:02:24.2]} 11.
e4 {[%clk 0:02:41.2]} 11... Nc6 {[%clk 0:02:14.5]} 12. f4 {[%clk 0:02:39.3]}
12... hxg4 {[%clk 0:02:09.6]} 13. Qxg4 {[%clk 0:02:38.6]} 13... g6 {[%clk
0:01:53]} 14. a3 {[%clk 0:02:30.4]} 14... Qd7 {[%clk 0:01:51.6]} 15. Nf3 {[%clk
0:02:25.1]} 15... Na5 {[%clk 0:01:44.8]} 16. Bd2 {[%clk 0:02:19.6]} 16... Nb3
{[%clk 0:01:43.1]} 17. Rd1 {[%clk 0:02:19.5]} 17... O-O-O {[%clk 0:01:41.7]} 18.
Ke2 {[%clk 0:02:17.8]} 18... Kb8 {[%clk 0:01:38]} 19. h5 {[%clk 0:02:06]} 19...
gxh5 {[%clk 0:01:32.3]} 20. Rxh5 {[%clk 0:02:05.3]} 20... Be7 {[%clk 0:01:19.7]}
21. Rdh1 {[%clk 0:01:53]} 21... Rhg8 {[%clk 0:01:17.8]} 22. Rg5 {[%clk 0:01:33]}
22... Bxg5 {[%clk 0:01:16.6]} 23. fxg5 {[%clk 0:01:31.4]} 23... Qb5 {[%clk
0:01:13.5]} 24. Rh7 {[%clk 0:01:24.5]} 24... Rgf8 {[%clk 0:00:44.7]} 25. Qh5
{[%clk 0:01:04.6]} 25... Nc5 {[%clk 0:00:43.4]} 26. Ne1 {[%clk 0:01:03.4]} 26...
Nxe4 {[%clk 0:00:43.3]} 27. Qf3 {[%clk 0:00:54.5]} 27... Nc5 {[%clk 0:00:27.7]}
28. b4 {[%clk 0:00:36.7]} 28... Nd7 {[%clk 0:00:21.1]} 29. Bf4 {[%clk
0:00:15.5]} 29... Nxe5 {[%clk 0:00:20.4]} 30. Qe4 {[%clk 0:00:15.9]} 30... Ng6
{[%clk 0:00:18.3]} 31. Bg3 {[%clk 0:00:12.5]} 31... Rde8 {[%clk 0:00:17.6]} 32.
Nf3 {[%clk 0:00:10.9]} 32... Qd5 {[%clk 0:00:17.2]} 33. Nxd4 {[%clk 0:00:09.1]}
33... Qxe4+ {[%clk 0:00:13.7]} 34. dxe4 {[%clk 0:00:10]} 34... Rd8 {[%clk
0:00:13.9]} 35. Nf3 {[%clk 0:00:09.1]} 35... Rde8 {[%clk 0:00:12.4]} 36. Ne5
{[%clk 0:00:09.1]} 36... Nxe5 {[%clk 0:00:11.9]} 37. Bxe5 {[%clk 0:00:10]} 37...
Kc8 {[%clk 0:00:11.9]} 38. Bf6 {[%clk 0:00:10.4]} 38... Kd7 {[%clk 0:00:11.7]}
39. Kd3 {[%clk 0:00:10.3]} 39... e5 {[%clk 0:00:11.7]} 40. Kc4 {[%clk
0:00:10.4]} 40... Ke6 {[%clk 0:00:11.9]} 41. Rh6 {[%clk 0:00:11]} 41... Rg8
{[%clk 0:00:10.9]} 42. a4 {[%clk 0:00:08.6]} 42... Rg6 {[%clk 0:00:10.6]} 43.
Rh1 {[%clk 0:00:08.8]} 43... Reg8 {[%clk 0:00:10.4]} 44. Rd1 {[%clk 0:00:06.5]}
44... Re8 {[%clk 0:00:09.6]} 45. a5 {[%clk 0:00:05.9]} 45... a6 {[%clk
0:00:09.3]} 46. b5 {[%clk 0:00:06.1]} 46... axb5+ {[%clk 0:00:08.9]} 47. Kxb5
{[%clk 0:00:06.2]} 47... Ra8 {[%clk 0:00:09.5]} 48. Rc1 {[%clk 0:00:04.7]} 48...
Kd6 {[%clk 0:00:09]} 49. Rd1+ {[%clk 0:00:04.6]} 49... Ke6 {[%clk 0:00:09.3]}
50. Rc1 {[%clk 0:00:05]} 50... Kd7 {[%clk 0:00:07.7]} 51. Rd1+ {[%clk
0:00:04.7]} 51... Kc8 {[%clk 0:00:07]} 52. Rd8# {[%clk 0:00:04.9]} 1-0

[Event "Late-Titled-Tuesday-Blitz-March-19-2024"]
[Site "Chess.com"]
[Date "2024.03.19"]
[Round "10"]
[White "egnfanclub"]
[Black "malakismayil"]
[Result "0-1"]
[WhiteElo "2390"]
[BlackElo "2519"]
[TimeControl "180+1"]
[EndTime "15:54:35 PDT"]
[Termination "malakismayil won by resignation"]

1. e4 {[%clk 0:03:00.9]} 1... e5 {[%clk 0:02:59.4]} 2. Nf3 {[%clk 0:03:00.3]}
2... Nc6 {[%clk 0:02:49.7]} 3. Bc4 {[%clk 0:02:59.1]} 3... Bc5 {[%clk
0:02:35.8]} 4. c3 {[%clk 0:02:57.1]} 4... Nf6 {[%clk 0:02:35.6]} 5. d4 {[%clk
0:02:54.5]} 5... exd4 {[%clk 0:02:36.5]} 6. b4 {[%clk 0:02:54.4]} 6... Bb6
{[%clk 0:02:30.5]} 7. e5 {[%clk 0:02:46]} 7... d5 {[%clk 0:02:27.4]} 8. exf6
{[%clk 0:02:46.2]} 8... dxc4 {[%clk 0:02:26.8]} 9. fxg7 {[%clk 0:02:34.6]} 9...
Rg8 {[%clk 0:02:20.5]} 10. Qe2+ {[%clk 0:02:17.8]} 10... Be6 {[%clk 0:02:18.6]}
11. Bg5 {[%clk 0:01:48.1]} 11... Qd5 {[%clk 0:02:15]} 12. Nbd2 {[%clk
0:01:22.5]} 12... d3 {[%clk 0:01:52.9]} 13. Qe4 {[%clk 0:01:18.7]} 13... h6
{[%clk 0:01:42]} 14. Qh7 {[%clk 0:01:13.2]} 14... Kd7 {[%clk 0:01:36.6]} 15.
Qxh6 {[%clk 0:01:07.6]} 15... Bf5 {[%clk 0:01:25.6]} 16. O-O {[%clk 0:01:02]}
16... Rae8 {[%clk 0:01:24.1]} 17. Rae1 {[%clk 0:00:58.8]} 17... Re2 {[%clk
0:01:07.9]} 18. Rxe2 {[%clk 0:00:47.7]} 18... dxe2 {[%clk 0:01:08.8]} 19. Re1
{[%clk 0:00:48.3]} 19... Bd3 {[%clk 0:01:06.5]} 20. b5 {[%clk 0:00:35]} 20...
Ne5 {[%clk 0:00:55.2]} 21. Bf6 {[%clk 0:00:22]} 21... Ng4 {[%clk 0:00:23.7]} 22.
Qf4 {[%clk 0:00:17.6]} 22... Bxf2+ {[%clk 0:00:20.7]} 23. Kh1 {[%clk 0:00:17.8]}
23... Nxf6 {[%clk 0:00:16.4]} 24. Qxf6 {[%clk 0:00:17.4]} 24... Bxe1 {[%clk
0:00:16.3]} 25. Nxe1 {[%clk 0:00:16]} 25... Qe6 {[%clk 0:00:14.9]} 26. Qd4+
{[%clk 0:00:15.4]} 26... Qd6 {[%clk 0:00:15.4]} 27. Qg4+ {[%clk 0:00:13.7]}
27... Qe6 {[%clk 0:00:15.8]} 28. Qd4+ {[%clk 0:00:13.5]} 28... Ke8 {[%clk
0:00:14.1]} 29. Ndf3 {[%clk 0:00:12.7]} 29... f6 {[%clk 0:00:11.7]} 30. Kg1
{[%clk 0:00:11.8]} 30... Rxg7 {[%clk 0:00:11.8]} 31. Kf2 {[%clk 0:00:12.4]}
31... Rd7 {[%clk 0:00:12.1]} 32. Qxa7 {[%clk 0:00:11.1]} 32... Qb6+ {[%clk
0:00:12.1]} 33. Qxb6 {[%clk 0:00:11.4]} 33... cxb6 {[%clk 0:00:13]} 34. Nd4
{[%clk 0:00:10]} 34... Rd5 {[%clk 0:00:09.9]} 35. a4 {[%clk 0:00:08.7]} 35...
Kf7 {[%clk 0:00:08.5]} 36. Ke3 {[%clk 0:00:09.1]} 36... Re5+ {[%clk 0:00:08.8]}
37. Kd2 {[%clk 0:00:09.1]} 37... Kg6 {[%clk 0:00:08.2]} 38. Nef3 {[%clk
0:00:09.5]} 38... Re8 {[%clk 0:00:05.4]} 39. Nxe2 {[%clk 0:00:09.9]} 39... Rxe2+
{[%clk 0:00:04.2]} 40. Kd1 {[%clk 0:00:10.3]} 40... Ra2 {[%clk 0:00:03.7]} 41.
h3 {[%clk 0:00:09.6]} 41... Rxa4 {[%clk 0:00:03.7]} 42. Nd4 {[%clk 0:00:10.1]}
42... Ra1+ {[%clk 0:00:04.1]} 43. Kd2 {[%clk 0:00:09.9]} 43... Ra2+ {[%clk
0:00:05]} 44. Ke3 {[%clk 0:00:10.8]} 44... Rxg2 {[%clk 0:00:05.4]} 45. Nf3
{[%clk 0:00:10.2]} 45... Rg3 {[%clk 0:00:05.5]} 46. Kf4 {[%clk 0:00:10]} 46...
Rxh3 {[%clk 0:00:05.2]} 47. Kg4 {[%clk 0:00:09.3]} 47... Rxf3 {[%clk 0:00:04.9]}
48. Kxf3 {[%clk 0:00:08]} 48... Kf5 {[%clk 0:00:05.8]} 49. Ke3 {[%clk
0:00:08.5]} 49... Ke5 {[%clk 0:00:06.7]} 50. Kf3 {[%clk 0:00:07]} 50... f5
{[%clk 0:00:07.6]} 51. Ke3 {[%clk 0:00:07.4]} 51... Kd5 {[%clk 0:00:08.5]} 52.
Kf4 {[%clk 0:00:07.3]} 52... Kc5 {[%clk 0:00:09.4]} 0-1

[Event "Late-Titled-Tuesday-Blitz-March-19-2024"]
[Site "Chess.com"]
[Date "2024.03.19"]
[Round "10"]
[White "Alexei_Gubajdullin"]
[Black "Heydarli77"]
[Result "1/2-1/2"]
[WhiteElo "2630"]
[BlackElo "2408"]
[TimeControl "180+1"]
[EndTime "15:54:37 PDT"]
[Termination "Game drawn by repetition"]

1. Nf3 {[%clk 0:03:00.9]} 1... d5 {[%clk 0:02:58.8]} 2. d4 {[%clk 0:03:00.3]}
2... Nf6 {[%clk 0:02:57.9]} 3. Bf4 {[%clk 0:03:00.1]} 3... Bf5 {[%clk 0:02:55]}
4. e3 {[%clk 0:02:58.8]} 4... e6 {[%clk 0:02:54.5]} 5. c4 {[%clk 0:02:58.9]}
5... Bxb1 {[%clk 0:02:53.8]} 6. Qxb1 {[%clk 0:02:58.8]} 6... Bb4+ {[%clk
0:02:53.1]} 7. Kd1 {[%clk 0:02:58.8]} 7... O-O {[%clk 0:02:49.2]} 8. a3 {[%clk
0:02:53.6]} 8... Bd6 {[%clk 0:02:46.9]} 9. Bg3 {[%clk 0:02:43.4]} 9... Ne4
{[%clk 0:02:45.5]} 10. Bd3 {[%clk 0:02:26.8]} 10... c5 {[%clk 0:02:33.9]} 11.
Bxe4 {[%clk 0:02:23.4]} 11... dxe4 {[%clk 0:02:32.8]} 12. Qxe4 {[%clk
0:02:23.5]} 12... cxd4 {[%clk 0:02:27.8]} 13. exd4 {[%clk 0:02:11.3]} 13... Nc6
{[%clk 0:02:26.6]} 14. Kc2 {[%clk 0:02:09.1]} 14... Rc8 {[%clk 0:02:23.7]} 15.
Rac1 {[%clk 0:02:06]} 15... Na5 {[%clk 0:02:18.8]} 16. c5 {[%clk 0:02:04.4]}
16... b6 {[%clk 0:02:12.8]} 17. Kb1 {[%clk 0:01:56.4]} 17... bxc5 {[%clk
0:02:11]} 18. dxc5 {[%clk 0:01:55.9]} 18... Bxc5 {[%clk 0:02:01.5]} 19. b4
{[%clk 0:01:33.7]} 19... Qb6 {[%clk 0:02:00.7]} 20. Ng5 {[%clk 0:01:29.7]} 20...
g6 {[%clk 0:01:53.8]} 21. Qh4 {[%clk 0:01:29.4]} 21... h5 {[%clk 0:01:51.8]} 22.
Be5 {[%clk 0:01:20.4]} 22... Be7 {[%clk 0:01:44.4]} 23. Bb2 {[%clk 0:01:12.4]}
23... Nb3 {[%clk 0:01:40.5]} 24. Rxc8 {[%clk 0:01:10.1]} 24... Rxc8 {[%clk
0:01:39.8]} 25. Qf4 {[%clk 0:01:09.5]} 25... Bxg5 {[%clk 0:01:25.6]} 26. Qxg5
{[%clk 0:01:09]} 26... Nd4 {[%clk 0:00:41.8]} 27. Qe5 {[%clk 0:01:00.2]} 27...
Rd8 {[%clk 0:00:41]} 28. Rd1 {[%clk 0:00:58.4]} 28... Rd5 {[%clk 0:00:35.9]} 29.
Qf6 {[%clk 0:00:53.7]} 29... e5 {[%clk 0:00:34.2]} 30. Qxb6 {[%clk 0:00:46.9]}
30... axb6 {[%clk 0:00:34.2]} 31. f4 {[%clk 0:00:46.9]} 31... f6 {[%clk
0:00:33.3]} 32. a4 {[%clk 0:00:44]} 32... Kf7 {[%clk 0:00:32.4]} 33. b5 {[%clk
0:00:37.1]} 33... Ke6 {[%clk 0:00:31.6]} 34. fxe5 {[%clk 0:00:37]} 34... fxe5
{[%clk 0:00:31.3]} 35. Rf1 {[%clk 0:00:31]} 35... Nb3 {[%clk 0:00:29.1]} 36. Kc2
{[%clk 0:00:29.1]} 36... Nc5 {[%clk 0:00:27.4]} 37. Ra1 {[%clk 0:00:27.8]} 37...
Nb7 {[%clk 0:00:25.6]} 38. Re1 {[%clk 0:00:26.3]} 38... Nc5 {[%clk 0:00:24.4]}
39. Ra1 {[%clk 0:00:25.9]} 39... Nb7 {[%clk 0:00:23.1]} 40. Bc1 {[%clk
0:00:26.1]} 40... e4 {[%clk 0:00:20.8]} 41. Be3 {[%clk 0:00:26]} 41... Rd6
{[%clk 0:00:19.2]} 42. Rd1 {[%clk 0:00:25.8]} 42... Nc5 {[%clk 0:00:15.1]} 43.
Bxc5 {[%clk 0:00:21.7]} 43... Rxd1 {[%clk 0:00:13.4]} 44. Kxd1 {[%clk
0:00:20.9]} 44... bxc5 {[%clk 0:00:13.7]} 45. a5 {[%clk 0:00:20.2]} 45... Kd6
{[%clk 0:00:13.1]} 46. a6 {[%clk 0:00:19.4]} 46... Kc7 {[%clk 0:00:12.8]} 47. a7
{[%clk 0:00:18.4]} 47... Kb7 {[%clk 0:00:12.3]} 48. b6 {[%clk 0:00:18.7]} 48...
c4 {[%clk 0:00:12.4]} 49. Kd2 {[%clk 0:00:18.9]} 49... g5 {[%clk 0:00:11.9]} 50.
h3 {[%clk 0:00:17.7]} 50... h4 {[%clk 0:00:11.3]} 51. Ke2 {[%clk 0:00:14.1]}
51... Ka8 {[%clk 0:00:11.2]} 52. Ke3 {[%clk 0:00:14.2]} 52... c3 {[%clk
0:00:10.9]} 53. Ke2 {[%clk 0:00:14.3]} 53... Kb7 {[%clk 0:00:11.1]} 54. Ke3
{[%clk 0:00:14.5]} 54... Ka8 {[%clk 0:00:11.4]} 55. Ke2 {[%clk 0:00:14.5]} 55...
Kb7 {[%clk 0:00:11.8]} 56. Ke3 {[%clk 0:00:14.7]} 56... Ka8 {[%clk 0:00:12.3]}
1/2-1/2

[Event "Late-Titled-Tuesday-Blitz-March-19-2024"]
[Site "Chess.com"]
[Date "2024.03.19"]
[Round "10"]
[White "rhwr"]
[Black "szachmistrz2500"]
[Result "1-0"]
[WhiteElo "2316"]
[BlackElo "2437"]
[TimeControl "180+1"]
[EndTime "15:54:39 PDT"]
[Termination "rhwr won by checkmate"]

1. e4 {[%clk 0:02:45.6]} 1... c5 {[%clk 0:02:59.1]} 2. Nf3 {[%clk 0:02:45.5]}
2... e6 {[%clk 0:02:58.9]} 3. d4 {[%clk 0:02:45.9]} 3... cxd4 {[%clk 0:02:59.2]}
4. Nxd4 {[%clk 0:02:46.5]} 4... Nc6 {[%clk 0:02:59.4]} 5. Be2 {[%clk 0:02:39.3]}
5... Nf6 {[%clk 0:02:55.8]} 6. Nc3 {[%clk 0:02:35.5]} 6... Bb4 {[%clk
0:02:55.6]} 7. Nxc6 {[%clk 0:02:34.3]} 7... bxc6 {[%clk 0:02:50.9]} 8. e5 {[%clk
0:02:32.5]} 8... Nd5 {[%clk 0:02:45]} 9. Bd2 {[%clk 0:02:32.2]} 9... Nxc3 {[%clk
0:02:42.3]} 10. bxc3 {[%clk 0:02:31.8]} 10... Bc5 {[%clk 0:02:38.2]} 11. O-O
{[%clk 0:02:31]} 11... O-O {[%clk 0:02:34.5]} 12. Bd3 {[%clk 0:02:28.6]} 12...
f5 {[%clk 0:02:31.8]} 13. exf6 {[%clk 0:02:25.4]} 13... Qxf6 {[%clk 0:02:29.5]}
14. Qe2 {[%clk 0:02:21.3]} 14... Qh4 {[%clk 0:02:17.3]} 15. Be3 {[%clk
0:02:11.9]} 15... Bd6 {[%clk 0:02:14]} 16. g3 {[%clk 0:02:08.6]} 16... Qh3
{[%clk 0:02:12.1]} 17. Be4 {[%clk 0:01:59.5]} 17... a5 {[%clk 0:02:10]} 18. Bg2
{[%clk 0:01:58.2]} 18... Qf5 {[%clk 0:02:08]} 19. Rfd1 {[%clk 0:01:50.5]} 19...
Bc7 {[%clk 0:02:02.1]} 20. Rab1 {[%clk 0:01:42]} 20... d5 {[%clk 0:01:59]} 21.
Bc5 {[%clk 0:01:35.7]} 21... Rf7 {[%clk 0:01:54.3]} 22. Qd3 {[%clk 0:01:26.1]}
22... e5 {[%clk 0:01:51.9]} 23. c4 {[%clk 0:01:11.6]} 23... e4 {[%clk
0:01:48.2]} 24. Qe2 {[%clk 0:00:59.6]} 24... Be6 {[%clk 0:01:46.3]} 25. cxd5
{[%clk 0:00:57.4]} 25... cxd5 {[%clk 0:01:41.5]} 26. Rb5 {[%clk 0:00:38.5]}
26... h6 {[%clk 0:01:27.6]} 27. c4 {[%clk 0:00:37.7]} 27... Qg4 {[%clk
0:01:09.4]} 28. Qxg4 {[%clk 0:00:28.3]} 28... Bxg4 {[%clk 0:01:09.3]} 29. Rc1
{[%clk 0:00:28.9]} 29... dxc4 {[%clk 0:01:04.3]} 30. Bxe4 {[%clk 0:00:27.9]}
30... Rd8 {[%clk 0:01:02.7]} 31. Be3 {[%clk 0:00:23.2]} 31... Be2 {[%clk
0:00:55]} 32. Bd5 {[%clk 0:00:15.3]} 32... Rxd5 {[%clk 0:00:49.9]} 33. Rxd5
{[%clk 0:00:15.3]} 33... Bd3 {[%clk 0:00:50.5]} 34. Rd4 {[%clk 0:00:12.1]} 34...
Be5 {[%clk 0:00:47.7]} 35. Rd5 {[%clk 0:00:11]} 35... Bc7 {[%clk 0:00:47.3]} 36.
Rc5 {[%clk 0:00:10]} 36... Bb6 {[%clk 0:00:42.7]} 37. Rc8+ {[%clk 0:00:09.3]}
37... Kh7 {[%clk 0:00:42.1]} 38. Bxb6 {[%clk 0:00:09.9]} 38... Rb7 {[%clk
0:00:37.9]} 39. Bxa5 {[%clk 0:00:09.7]} 39... Ra7 {[%clk 0:00:38.4]} 40. Rc5
{[%clk 0:00:08.2]} 40... Ra6 {[%clk 0:00:38.7]} 41. Kg2 {[%clk 0:00:07.9]} 41...
Rd6 {[%clk 0:00:38.9]} 42. Kf3 {[%clk 0:00:07.8]} 42... Re6 {[%clk 0:00:39.3]}
43. a4 {[%clk 0:00:06.8]} 43... Be2+ {[%clk 0:00:39.6]} 44. Kg2 {[%clk
0:00:06.6]} 44... Bd3 {[%clk 0:00:40.2]} 45. Bc3 {[%clk 0:00:06.7]} 45... Be4+
{[%clk 0:00:40.5]} 46. Kg1 {[%clk 0:00:04.9]} 46... Bd3 {[%clk 0:00:40.9]} 47.
a5 {[%clk 0:00:04.9]} 47... Ra6 {[%clk 0:00:40.9]} 48. Rb5 {[%clk 0:00:04.7]}
48... Ra7 {[%clk 0:00:40]} 49. Ra1 {[%clk 0:00:04.4]} 49... h5 {[%clk
0:00:37.8]} 50. a6 {[%clk 0:00:04.6]} 50... Be4 {[%clk 0:00:38.1]} 51. Rb6
{[%clk 0:00:04.8]} 51... Bf3 {[%clk 0:00:37.8]} 52. Rb4 {[%clk 0:00:01.8]} 52...
Be2 {[%clk 0:00:37.7]} 53. Rb7 {[%clk 0:00:01.4]} 53... Ra8 {[%clk 0:00:37.4]}
54. a7 {[%clk 0:00:01.6]} 54... Bf3 {[%clk 0:00:38.2]} 55. Rb8 {[%clk 0:00:02]}
55... Be4 {[%clk 0:00:37.3]} 56. Rxa8 {[%clk 0:00:02.7]} 56... Bxa8 {[%clk
0:00:38.2]} 57. Ra4 {[%clk 0:00:01.9]} 57... Bc6 {[%clk 0:00:38.1]} 58. Rxc4
{[%clk 0:00:01.9]} 58... Ba8 {[%clk 0:00:39]} 59. Rc8 {[%clk 0:00:02.1]} 59...
Bb7 {[%clk 0:00:39.7]} 60. a8=Q {[%clk 0:00:01.9]} 60... Bd5 {[%clk 0:00:40.3]}
61. Qxd5 {[%clk 0:00:02.1]} 61... Kh6 {[%clk 0:00:40.4]} 62. Rh8+ {[%clk
0:00:01.6]} 62... Kg6 {[%clk 0:00:40]} 63. Rg8 {[%clk 0:00:01.6]} 63... Kh6
{[%clk 0:00:40.2]} 64. Bxg7+ {[%clk 0:00:01.4]} 64... Kg6 {[%clk 0:00:40.4]} 65.
Bf8+ {[%clk 0:00:01.6]} 65... Kh7 {[%clk 0:00:41.3]} 66. Qf7# {[%clk 0:00:01.6]}
1-0

[Event "Late-Titled-Tuesday-Blitz-March-19-2024"]
[Site "Chess.com"]
[Date "2024.03.19"]
[Round "10"]
[White "Der_Balak_3Halak"]
[Black "woodhy"]
[Result "0-1"]
[WhiteElo "2415"]
[BlackElo "2523"]
[TimeControl "180+1"]
[EndTime "15:54:40 PDT"]
[Termination "woodhy won by resignation"]

1. e4 {[%clk 0:03:00]} 1... e6 {[%clk 0:03:00.1]} 2. d4 {[%clk 0:02:58.9]} 2...
d5 {[%clk 0:02:59.8]} 3. exd5 {[%clk 0:02:59.8]} 3... exd5 {[%clk 0:02:59.3]} 4.
Bd3 {[%clk 0:03:00.7]} 4... Bd6 {[%clk 0:02:55.3]} 5. Ne2 {[%clk 0:03:00.2]}
5... Ne7 {[%clk 0:02:55.6]} 6. O-O {[%clk 0:02:57.7]} 6... O-O {[%clk
0:02:55.3]} 7. Bf4 {[%clk 0:02:57.9]} 7... Bf5 {[%clk 0:02:54.6]} 8. Nbc3 {[%clk
0:02:54.2]} 8... c6 {[%clk 0:02:53.9]} 9. f3 {[%clk 0:02:47.9]} 9... Re8 {[%clk
0:02:51]} 10. Re1 {[%clk 0:02:47.1]} 10... Qc7 {[%clk 0:02:48.3]} 11. Bxd6
{[%clk 0:02:46.3]} 11... Qxd6 {[%clk 0:02:49.2]} 12. Qd2 {[%clk 0:02:45.6]}
12... Nd7 {[%clk 0:02:47.8]} 13. Qf4 {[%clk 0:02:44.3]} 13... Qg6 {[%clk
0:02:45.7]} 14. Bxf5 {[%clk 0:02:29.5]} 14... Nxf5 {[%clk 0:02:46.6]} 15. Ng3
{[%clk 0:02:29.3]} 15... Nxg3 {[%clk 0:02:43.5]} 16. Qxg3 {[%clk 0:02:29.9]}
16... Qxc2 {[%clk 0:02:42.7]} 17. Qc7 {[%clk 0:02:22.5]} 17... Nf8 {[%clk
0:02:30.4]} 18. Qxb7 {[%clk 0:02:19.2]} 18... Qd2 {[%clk 0:02:29.8]} 19. Red1
{[%clk 0:02:17]} 19... Qe3+ {[%clk 0:02:28.4]} 20. Kh1 {[%clk 0:02:17]} 20...
Rab8 {[%clk 0:02:27.5]} 21. Qxc6 {[%clk 0:02:10]} 21... Rxb2 {[%clk 0:02:26.2]}
22. Nxd5 {[%clk 0:01:59.8]} 22... Qf2 {[%clk 0:02:13.6]} 23. Rg1 {[%clk
0:01:59.7]} 23... Re6 {[%clk 0:02:08.6]} 24. Qc8 {[%clk 0:01:43.4]} 24... Qxd4
{[%clk 0:01:54.7]} 25. Rad1 {[%clk 0:01:40.9]} 25... Rd2 {[%clk 0:01:51.3]} 26.
Rxd2 {[%clk 0:01:33.3]} 26... Qxd2 {[%clk 0:01:52.2]} 27. Qd8 {[%clk 0:01:32]}
27... Qe2 {[%clk 0:01:34.1]} 28. Nf4 {[%clk 0:01:31.2]} 28... Re8 {[%clk
0:01:29.9]} 29. Nxe2 {[%clk 0:01:12.4]} 29... Rxd8 {[%clk 0:01:29.1]} 30. Nc3
{[%clk 0:01:06.7]} 30... Ne6 {[%clk 0:01:24.5]} 31. Rd1 {[%clk 0:01:05.7]} 31...
Rc8 {[%clk 0:01:23.9]} 32. Rc1 {[%clk 0:00:58.5]} 32... h6 {[%clk 0:01:19.9]}
33. Kg1 {[%clk 0:00:57]} 33... Rd8 {[%clk 0:01:18.1]} 34. Rd1 {[%clk 0:00:53.7]}
34... Rb8 {[%clk 0:01:17.2]} 35. Rb1 {[%clk 0:00:49.3]} 35... Rc8 {[%clk
0:01:17]} 36. Rc1 {[%clk 0:00:49.2]} 36... Nf4 {[%clk 0:01:12.3]} 37. Kf1 {[%clk
0:00:45.9]} 37... Nd3 {[%clk 0:01:05.5]} 38. Rc2 {[%clk 0:00:46]} 38... Re8
{[%clk 0:00:55.3]} 39. Re2 {[%clk 0:00:38]} 39... Rc8 {[%clk 0:00:54.7]} 40. Rc2
{[%clk 0:00:37.9]} 40... Rc6 {[%clk 0:00:50.1]} 41. Ke2 {[%clk 0:00:33]} 41...
Nf4+ {[%clk 0:00:49.8]} 42. Kd1 {[%clk 0:00:25.2]} 42... Nxg2 {[%clk 0:00:43.5]}
43. Rxg2 {[%clk 0:00:22.3]} 43... Rxc3 {[%clk 0:00:42.9]} 44. Rf2 {[%clk
0:00:18.8]} 44... f5 {[%clk 0:00:42]} 45. Kd2 {[%clk 0:00:19.3]} 45... Ra3
{[%clk 0:00:41.7]} 46. Kc1 {[%clk 0:00:19.9]} 46... f4 {[%clk 0:00:38]} 47. Kb2
{[%clk 0:00:20.1]} 47... Re3 {[%clk 0:00:37.7]} 48. h4 {[%clk 0:00:15]} 48...
Kf7 {[%clk 0:00:37.3]} 49. Rc2 {[%clk 0:00:15.6]} 49... Rxf3 {[%clk 0:00:36.8]}
50. Rc7+ {[%clk 0:00:15.9]} 50... Kf6 {[%clk 0:00:37.1]} 51. Rxa7 {[%clk
0:00:16.8]} 51... g5 {[%clk 0:00:37.4]} 52. Ra6+ {[%clk 0:00:15.7]} 52... Kg7
{[%clk 0:00:36.3]} 53. hxg5 {[%clk 0:00:09.8]} 53... hxg5 {[%clk 0:00:37.2]} 54.
a4 {[%clk 0:00:10.6]} 54... g4 {[%clk 0:00:36.4]} 55. Ra7+ {[%clk 0:00:08.2]}
55... Kg6 {[%clk 0:00:35.8]} 56. Re7 {[%clk 0:00:08.2]} 56... g3 {[%clk
0:00:35.3]} 57. Re1 {[%clk 0:00:06.7]} 57... g2 {[%clk 0:00:34.5]} 58. Rg1
{[%clk 0:00:05.9]} 58... Rf2+ {[%clk 0:00:34.8]} 59. Kc3 {[%clk 0:00:06.2]}
59... f3 {[%clk 0:00:35.7]} 0-1